Workbook

Sheet Лист1
A1: № п/п | B1: Вопрос | C1: Ответы | D1: Ответы в % соотношении
A2: 1 | B2: Как часто Вы заходите на наш сайт?
B3: Каждый день
B4: Несколько раз в неделю | C4: =1+1+1 -> 3 | D4: =C4*100/19 -> 15.78947368
B5: 1 раз в неделю | C5: =1+1+1+1+1 -> 5 | D5: =C5*100/19 -> 26.31578947
B6: 1 раз в месяц | C6: =1+1+1+1+1+1+1 -> 7 | D6: =C6*100/19 -> 36.84210526
B7: Не захожу совсем
B8: Другое | C8: =1+1+1+1 -> 4 | D8: =C8*100/19 -> 21.05263158
A10: 2 | B10: Как Вы оцениваете внешний вид нашего сайта?
B11: Очень хороший | C11: =1+1+1 -> 3 | D11: =C11*100/19 -> 15.78947368
B12: Хороший | C12: =1+1+1+1+1+1+1+1+1+1+1+1 -> 12 | D12: =C12*100/19 -> 63.15789474
B13: Нормальный | C13: =1+1+1+1 -> 4 | D13: =C13*100/19 -> 21.05263158
B14: Плохой
B15: Мне он совсем не нравится
A17: 3 | B17: Насколько сложно ориентироваться на нашем сайте?
B18: Очень просто | C18: =1+1+1 -> 3 | D18: =C18*100/19 -> 15.78947368
B19: Скорее просто | C19: =1+1+1+1+1+1+1+1 -> 8 | D19: =C19*100/19 -> 42.10526316
B20: Нормально | C20: =1+1+1+1+1+1+1+1 -> 8 | D20: =C20*100/19 -> 42.10526316
B21: Скорее сложно
B22: Очень сложно
A24: 4 | B24: Насколько сложно найти на нашем сайте нужную информацию?
B25: Очень просто | C25: =1 -> 1 | D25: =C25*100/19 -> 5.263157895
B26: Скорее просто | C26: =1+1+1+1+1+1+1+1 -> 8 | D26: =C26*100/19 -> 42.10526316
B27: Нормально | C27: =1+1+1+1+1+1+1+1+1+1 -> 10 | D27: =C27*100/19 -> 52.63157895
B28: Скорее сложно
B29: Очень сложно
A31: 5 | B31: В какой степени является информация на нашем сайте понятной?
B32: Полностью понятна | C32: =1+1+1 -> 3 | D32: =C32*100/19 -> 15.78947368
B33: Понятна | C33: =1+1+1+1+1+1+1+1+1+1+1+1 -> 12 | D33: =C33*100/19 -> 63.15789474
B34: Скорее понятна | C34: =1+1+1 -> 3 | D34: =C34*100/19 -> 15.78947368
B35: Скорее непонятна | C35: =1 -> 1 | D35: =C35*100/19 -> 5.263157895
B36: Непонятна
A38: 6 | B38: Вы считаете наши веб-страницы наглядными?
B39: Да | C39: =1+1+1+1+1+1+1+1+1+1+1+1+1+1+1+1+1+1+1 -> 19 | D39: =C39*100/19 -> 100
B40: Нет
A42: 7 | B42: Вас устраивает скорость загрузки сайта?
B43: Да | C43: =1+1+1+1+1+1+1+1+1+1+1+1+1+1+1+1+1+1+1 -> 19 | D43: =C43*100/19 -> 100
B44: Нет
A46: 8 | B46: Вам подходит размер и стиль шрифта нашего сайта?
B47: Да | C47: =1+1+1+1+1+1+1+1+1+1+1+1+1+1+1+1+1+1+1 -> 19 | D47: =C47*100/19 -> 100
B48: Нет
A50: 9 | B50: Как Вы оцениваете актуальность содержания на нашем сайте?
B51: Актуальное | C51: =1+1+1+1+1+1+1+1 -> 8 | D51: =C51*100/19 -> 42.10526316
B52: Скорее актуальное | C52: =1+1+1+1+1+1+1+1+1+1+1 -> 11 | D52: =C52*100/19 -> 57.89473684
B53: Не слишком актуальное
B54: Совсем не актуальное
A56: 10 | B56: Насколько сложно, по Вашему мнению, скачивание файлов с нашего сайта?
B57: Очень просто | C57: =1+1+1+1 -> 4 | D57: =C57*100/19 -> 21.05263158
B58: Скорее просто | C58: =1+1+1+1+1+1+1+1 -> 8 | D58: =C58*100/19 -> 42.10526316
B59: Нормально | C59: =1+1+1+1+1+1 -> 6 | D59: =C59*100/19 -> 31.57894737
B60: Скорее сложно | C60: =1 -> 1 | D60: =C60*100/19 -> 5.263157895
B61: Очень сложно
A63: 11 | B63: Насколько Вы довольны информационной наполняемостью сайта?
B64: Очень доволен/льна | C64: =1 -> 1 | D64: =C64*100/19 -> 5.263157895
B65: Доволен/льна | C65: =1+1+1+1+1+1+1+1+1+1+1 -> 11 | D65: =C65*100/19 -> 57.89473684
B66: Скорее доволен/льна | C66: =1+1+1 -> 3 | D66: =C66*100/19 -> 15.78947368
B67: В среднем доволен/льна | C67: =1+1+1+1 -> 4 | D67: =C67*100/19 -> 21.05263158
B68: Скорее недоволен/льна
B69: Недоволен/льна
B70: Очень недоволен/льна
A72: 12 | B72: Как Вы оцениваете работу сервиса «личный кабинет»?
B73: Очень доволен/льна
B74: Доволен/льна | C74: =1+1+1+1+1+1+1+1+1+1+1+1+1+1+1+1 -> 16 | D74: =C74*100/19 -> 84.21052632
B75: Скорее доволен/льна | C75: =1+1 -> 2 | D75: =C75*100/19 -> 10.52631579
B76: В среднем доволен/льна
B77: Скорее недоволен/льна | C77: =1 -> 1 | D77: =C77*100/19 -> 5.263157895
B78: Недоволен/льна
B79: Не пользуюсь данным сервисом
A81: 13 | B81: Какие из перечисленных разделов сайта наиболее Вам полезны?
B82: Новостная информация | C82: =1+1+1+1+1+1+1+1+1 -> 9 | D82: =C82*100/19 -> 47.36842105
B83: Информация о проводимых закупках | C83: =1+1+1 -> 3 | D83: 15.78947368
B84: Нормативно-правовая база | C84: =1+1+1+1+1 -> 5 | D84: 26.31578947
B85: Законодательные документы | C85: =1+1+1+1+1 -> 5 | D85: 26.31578947
B86: Документы контрольного комитета | C86: =1+1+1 -> 3 | D86: 15.78947368
B87: Документы Национального реестра специалистов | C87: =1+1+1+1+1+1+1+1 -> 8 | D87: 42.10526316
B88: Контактная информация | C88: =1+1+1+1+1 -> 5 | D88: 26.31578947
B89: Таких разделов нет
B90: Другое | C90: =1+1 -> 2 | D90: =C90*100/19 -> 10.52631579
A92: 14 | B92: Насколько Вы в общем довольны нашим сайтом?
B93: Очень доволен/льна
B94: Доволен/льна | C94: =1+1+1+1+1+1+1+1+1+1+1+1 -> 12 | D94: =C94*100/19 -> 63.15789474
B95: Скорее доволен/льна | C95: =1+1+1+1+1+1 -> 6 | D95: =C95*100/19 -> 31.57894737
B96: В среднем доволен/льна | C96: =1 -> 1 | D96: =C96*100/19 -> 5.263157895
B97: Скорее недоволен/льна
B98: Недоволен/льна
B99: Очень недоволен/льна
A101: 15 | B101: Есть что-нибудь, что Вы бы рекомендовали изменить, дополнить или удалить?
B102: мы состоим еще и в проектном сро там реализована возможность самому члену СРО сформировывать выписку из реестра членов сро в онлайн режиме в формате ПДФ. очень удобно .
B103: все устраивает
B104: В целом все хорошо. Но если будут шаги в сторону развития и усовершенствования, то это всегда только приветствуется.
